Workbook

Sheet Sheet1
A1: Developer-agreement-contribution | B1: Developer-agreeement | C1: Reason | D1: Received | E1: Allocated | F1: Spent | G1: Entry Date | H1: End Date
A2: 010011 | B2: 34 | C2: Highways
A3: 010011 | B3: 34 | C3: Leisure Contribution | E3: 500.00
A4: 011096 | B4: 58 | C4: Leisure Contribution
A5: 020563 | B5: 237 | C5: Leisure Contribution | D5: 86,159.50 | E5: =420+86612.56 -> 87,032.56 | F5: -86,612.56
A6: 020980 | B6: 22 | C6: Art
A7: 020980 | B7: 22 | C7: Art
A8: 020306 | B8: 245 | C8: Leisure Contribution
A9: 021306 | B9: 13 | C9: Art
A10: 021306 | B10: 13 | C10: Leisure Contribution
A11: 031019 | B11: 70 | C11: Highways
A12: 031042 | B12: 72 | C12: CBC
A13: 040631 | B13: 217 | C13: Leisure Contribution
A14: 041046 | B14: 112 | C14: CCTV
A15: 041046 | B15: 112 | C15: CCTV
A16: 041273 | B16: 249 | C16: Leisure Contribution
A17: 041273 | B17: 249 | C17: Art
A18: 041273 | B18: 249 | C18: Leisure Contribution
A19: 041883 | B19: 103 | C19: Leisure Contribution
A20: 041998 | B20: 148 | C20: Leisure Contribution
A21: 050014 | B21: 178 | C21: CCTV | E21: 8.08
A22: 050014 | B22: 178 | C22: Highways
A23: 050611 | B23: 260 | C23: Leisure Contribution
A24: 050611 | B24: 260 | C24: Leisure Contribution
A25: 050636 | B25: 177 | C25: Leisure Contribution
A26: 060031 | B26: 258 | C26: CCTV
A27: 060669 | B27: 275 | C27: Leisure Contribution
A28: 060704 | B28: 267 | C28: Community Contribution
A29: 060741 | B29: 278 | C29: CCTV | E29: 6,410.68
A30: 061153 | B30: 291 | C30: Leisure Contribution | E30: 42,238.17 | F30: -34,000.00
A31: 061436 | B31: 280 | C31: Community Contribution
A32: 061836 | B32: 413 | C32: Leisure Ward 65% | E32: 26.17
A33: 061836 | B33: 413 | C33: Community Contribution
A34: 062771 | B34: 454 | C34: Leisure Ward 65% | E34: 278.17
A35: 070015 | B35: 312 | C35: Leisure Ward 65%
A36: 070046 | B36: 321 | C36: Leisure Ward 65% | E36: =10676.88+2973.76 -> 13,650.64 | F36: -10,676.88
A37: 070064 | B37: 299 | C37: Leisure Contribution
A38: 070069 | B38: 423 | C38: Leisure Ward 65%
A39: 070136 | B39: 409 | C39: Leisure Ward 65%
A40: 070233 | B40: 384 | C40: CCTV | E40: 7,013.71
A41: 070240 | B41: 424 | C41: Leisure Borough 35%
A42: 070240 | B42: 424 | C42: Leisure Ward 65%
A43: 070253 | B43: 412 | C43: Leisure Ward 65% | E43: 6,464.75 | F43: -6,464.75
A44: 070296 | B44: 372 | C44: Leisure Ward 65% | E44: =15110.34+29454.64 -> 44,564.98
A45: 070307 | B45: 319 | C45: Leisure Ward 65%
A46: 070691 | B46: 315 | C46: Community Contribution
A47: 070691 | B47: 315 | C47: Leisure Ward 65%
A48: 071146 | B48: 388 | C48: Leisure Ward 65%
A49: 071528 | B49: 407 | C49: Leisure Borough 35%
A50: 071668 | B50: 408 | C50: Leisure Ward 65%
A51: 071734 | B51: 419 | C51: Leisure Borough 35%
A52: 071904 | B52: 420 | C52: Leisure Ward 65%
A53: 072048 | B53: 428 | C53: Leisure Ward 65%
A54: 072229 | B54: 434 | C54: Leisure Ward 65% | E54: 48.69 | F54: -48.69
A55: 072357 | B55: 446 | C55: Leisure Ward 65% | E55: 5,431.29
A56: 072480 | B56: 462 | C56: Leisure Borough 35%
A57: 072665 | B57: 465 | C57: Leisure Borough 35%
A58: 072760 | B58: 481 | C58: Leisure Ward 65% | E58: 1,297.46 | F58: -1,297.46
A59: 080165 | B59: 496 | C59: Leisure Ward 65%
A60: 080194 | B60: 558 | C60: Community Contribution
A61: 080300 | B61: 499 | C61: Leisure Ward 65% | E61: 3,692.65
A62: 080543 | B62: 509 | C62: Leisure Borough 35%
A63: 080543 | B63: 509 | C63: Leisure Ward 65%
A64: 080664 | B64: 519 | C64: Leisure Ward 65%
A65: 080690 | B65: 560 | C65: Leisure Ward 65% | E65: 22,741.59 | F65: -22,741.59
A66: 080693 | B66: 444 | C66: Leisure Contribution
A67: 080928 | B67: 535 | C67: Leisure Ward 65%
A68: 080964 | B68: 230 | C68: Leisure Ward 65% | E68: 22,716.42 | F68: -22,716.42
A69: 081118 | B69: 537 | C69: Leisure Borough 35%
A70: 081179 | B70: 556 | C70: Leisure Ward 65%
A71: 081202 | B71: 538 | C71: Leisure Ward 65%
A72: 081414 | B72: 549 | C72: Leisure Ward 65% | E72: 940.15 | F72: -940.15
A73: 081632 | B73: 559 | C73: Leisure Borough 35%
A74: 081952 | B74: 443 | C74: Leisure Ward 65% | E74: 3,505.06 | F74: -3,505.06
A75: 090395 | B75: 574 | C75: Leisure Borough 35%
A76: 090395 | B76: 574 | C76: Leisure Ward 65% | E76: 3,441.71
A77: 090551 | B77: 583 | C77: Leisure Ward 65% | E77: 8,030.68
A78: 090725 | B78: 598 | C78: Community Borough 35% | E78: 5,945.23 | F78: -5,945.23
A79: 090752 | B79: 277 | C79: Leisure Public Art | E79: 1,103.23
A80: 090829 | B80: 594 | C80: Leisure Borough 35%
A81: 090906 | B81: 596 | C81: Leisure Ward 65% | E81: 1,962.81
A82: 091004 | B82: 601 | C82: Leisure Ward 65%
A83: 091004 | B83: 601 | C83: Leisure Borough 35%
A84: 091004 | B84: 601 | C84: Leisure Ward 65%
A85: 091068 | B85: 614 | C85: Leisure Ward 65% | E85: 1,958.11 | F85: -1,958.11
A86: 091092 | B86: 635 | C86: Leisure Borough 35%
A87: 091208 | B87: 604 | C87: Travel Club
A88: 091288 | B88: 606 | C88: Leisure Ward 65%
A89: 091559 | B89: 673 | C89: Leisure Contribution
A90: 091559 | B90: 673 | C90: Leisure Maintenance Sum
A91: 091636 | B91: 624 | C91: Community Ward 65%
A92: 091651 | B92: 765 | C92: Leisure Contribution
A93: 100178 | B93: 631 | C93: Community Ward 65%
A94: 100383 | B94: 745 | C94: Leisure Borough 35%
A95: 100442 | B95: 809 | C95: Community Ward 65%
A96: 100502 | B96: 633 | C96: Infrastructure
A97: 100927 | B97: 825 | C97: Community Ward 65%
A98: 101018 | B98: 681 | C98: Community Ward 65% | E98: 16.39 | F98: -16.39
A99: 101018 | B99: 681 | C99: Leisure Ward 65% | E99: 529.51 | F99: -529.51
A100: 101172 | B100: 661 | C100: Community Ward 65% | E100: 4.17
A101: 101292 | B101: 660 | C101: Community Ward 65% | E101: 765.90 | F101: -765.90
A102: 101292 | B102: 660 | C102: Leisure Borough 35%
A103: 101292 | B103: 660 | C103: Leisure Ward 65%
A104: 101457 | B104: 662 | C104: Leisure Ward 65%
A105: 101661 | B105: 664 | C105: Leisure Borough 35%
A106: 101678 | B106: 672 | C106: Leisure Borough 35%
A107: 101678 | B107: 672 | C107: Leisure Ward 65% | E107: 4,970.83
A108: 101706 | B108: 665 | C108: Community Ward 65%
A109: 101947 | B109: 666 | C109: Community Contribution | E109: 13.98
A110: 102068 | B110: 707 | C110: Leisure Ward 65% | E110: 4,185.34 | F110: -4,185.34
A111: 102186 | B111: 682 | C111: Leisure Ward 65%
A112: 102278 | B112: 683 | C112: Leisure Ward 65% | E112: 7,491.53
A113: 102304 | B113: 685 | C113: Leisure Borough 35%
A114: 102447 | B114: 693 | C114: Community Ward 65%
A115: 102474 | B115: 759 | C115: Highways
A116: 102494 | B116: 696 | C116: Community Ward 65%
A117: 102494 | B117: 696 | C117: Leisure Ward 65%
A118: 102512 | B118: 751 | C118: Community Ward 65%
A119: 102529 | B119: 735 | C119: Leisure Ward 65%
A120: 102595 | B120: 694 | C120: Leisure Ward 65% | E120: 12,083.46 | F120: -12,083.46
A121: 102598 | B121: 732 | C121: Leisure Ward 65% | E121: 4,935.39 | F121: -4,935.39
A122: 102685 | B122: 723 | C122: Community Ward 65%
A123: 110022 | B123: 475 | C123: Leisure Ward 65%
A124: 110058 | B124: 708 | C124: Leisure Borough 35%
A125: 110088 | B125: 770 | C125: Community Ward 65% | E125: 1,205.40
A126: 110088 | B126: 770 | C126: Leisure Borough 35%
A127: 110267 | B127: 709 | C127: Community Ward 65%
A128: 110267 | B128: 709 | C128: Leisure Ward 65%
A129: 110285 | B129: 727 | C129: Leisure Ward 65% | E129: 2,933.80 | F129: -2,933.80
A130: 110321 | B130: 713 | C130: Community Ward 65%
A131: 110321 | B131: 713 | C131: Community Ward 65%
A132: 110372 | B132: 721 | C132: Leisure Ward 65%
A133: 110373 | B133: 741 | C133: Community Borough 35%
A134: 110373 | B134: 741 | C134: Community Ward 65%
A135: 110373 | B135: 741 | C135: Leisure Borough 35%
A136: 110373 | B136: 741 | C136: Leisure Ward 65% | E136: 20,000.00
A137: 110419 | B137: 712 | C137: Community Ward 65%
A138: 110573 | B138: 720 | C138: Leisure Borough 35%
A139: 110573 | B139: 720 | C139: Leisure Ward 65% | E139: 6,511.05 | F139: -2,880.00
A140: 110657 | B140: 725 | C140: Leisure Ward 65%
A141: 110719 | B141: 729 | C141: Community Ward 65%
A142: 110748 | B142: 749 | C142: Leisure Ward 65%
A143: 110763 | B143: 744 | C143: Leisure Ward 65%
A144: 110821 | B144: 760 | C144: Community Ward 65%
A145: 110821 | B145: 760 | C145: Leisure Ward 65%
A146: 110937 | B146: 750 | C146: Community Ward 65%
A147: 110937 | B147: 750 | C147: Leisure Borough 35% | E147: 46.42
A148: 110939 | B148: 740 | C148: Leisure Ward 65% | E148: 6,760.66 | F148: -6,760.66
A149: 111062 | B149: 736 | C149: Leisure Borough 35%
A150: 111153 | B150: 747 | C150: Leisure Ward 65% | E150: 15,000.00
A151: 111222 | B151: 864 | C151: Affordable Housing
A152: 111222 | B152: 864 | C152: Affordable Housing
A153: 111287 | B153: 748 | C153: Leisure Ward 65%
A154: 111302 | B154: 752 | C154: Cycle Training | E154: 2,457.21
A155: 111302 | B155: 752 | C155: Leisure Borough 35%
A156: 111302 | B156: 752 | C156: Leisure Ward 65%
A157: 111363 | B157: 756 | C157: Leisure Ward 65%
A158: 111383 | B158: 819 | C158: Leisure Ward 65% | E158: 5,782.04 | F158: -5,782.04
A159: 111529 | B159: 792 | C159: Leisure Borough 35% | E159: 3.17
A160: 111547 | B160: 781 | C160: Leisure Ward 65% | E160: 2,033.20
A161: 111584 | B161: 758 | C161: Community Ward 65%
A162: 111713 | B162: 772 | C162: Community Borough 35%
A163: 111713 | B163: 772 | C163: Leisure Ward 65%
A164: 111938 | B164: 784 | C164: Community Ward 65%
A165: 111940 | B165: 807 | C165: Community Ward 65%
A166: 112001 | B166: 806 | C166: Leisure Ward 65% | E166: 15,000.00 | F166: -15,000.00
A167: 112079 | B167: 774 | C167: Leisure Borough 35%
A168: 112079 | B168: 774 | C168: Leisure Ward 65%
A169: 112259 | B169: 775 | C169: Leisure Ward 65%
A170: 112369 | B170: 816 | C170: Community Borough 35% | E170: 10.56
A171: 112369 | B171: 816 | C171: Community Ward 65%
A172: 112447 | B172: 791 | C172: Leisure Ward 65% | E172: 18.00
A173: 112480 | B173: 797 | C173: Leisure Ward 65%
A174: 120208 | B174: 788 | C174: Community Ward 65%
A175: 120246 | B175: 794 | C175: Leisure Ward 65%
A176: 120380 | B176: 917 | C176: Community Contribution | E176: 88,352.72
A177: 120380 | B177: 917 | C177: Leisure Contribution
A178: 120380 | B178: 917 | C178: Footbridge | E178: =9725+20874 -> 30,599.00 | F178: -20,874.00
A179: 120380 | B179: 917 | C179: Student Travel | E179: =3000+1502.11 -> 4,502.11 | F179: -3,000.00
A180: 120387 | B180: 800 | C180: Leisure Ward 65%
A181: 120584 | B181: 826 | C181: Leisure Ward 65% | E181: 1,094.57 | F181: -1,094.57
A182: 120788 | B182: 814 | C182: Community Ward 65%
A183: 120788 | B183: 814 | C183: Leisure Ward 65% | E183: 272.80
A184: 120848 | B184: 883 | C184: Community Contribution | E184: 10,132.62 | F184: -5,368.20
A185: 120848 | B185: 883 | C185: Waste Disposal
A186: 120868 | B186: 822 | C186: Community Ward 65% | E186: 1,994.36
A187: 120868 | B187: 822 | C187: Leisure Borough 35%
A188: 120943 | B188: 818 | C188: Community Ward 65%
A189: 120966 | B189: 823 | C189: Leisure Ward 65%
A190: 121129 | B190: 852 | C190: Leisure Borough 35%
A191: 121129 | B191: 852 | C191: Highways
A192: 121290 | B192: 840 | C192: Waste Disposal
A193: 121371 | B193: 830 | C193: Community Ward 65%
A194: 121444 | B194: 887 | C194: Business Enterprise Contribution | E194: 9,073.93
A195: 121555 | B195: 837 | C195: Leisure Ward 65% | E195: 589.15
A196: 121664 | B196: 836 | C196: Leisure Ward 65%
A197: 121699 | B197: 857 | C197: Community Ward 65%
A198: 121699 | B198: 857 | C198: Leisure Borough 35%
A199: 121842 | B199: 848 | C199: Community Ward 65%
A200: 121842 | B200: 848 | C200: Community Borough 35%
... 376 more rows
